Cogmind - Beta 14 @@@ ROGUE MODE // 2025.01.05 @ 20:21:42 Player: Fazzonamite Result: Destroyed by Executioner with Helical Railgun Performance ------------- Evolutions (4) 2000 Regions Visited (10) 2000 Robots Destroyed (83) 415 Value Destroyed (3263) 3263 Prototype IDs (27) 540 Alien Tech Used (0) 0 Bonus (564) 564 TOTAL SCORE: 8782 Bonus ------- High Alert Combat Kills 64 Entered Garrisons 200 Aligned with FarCom 300 Cogmind --------- Core Integrity 0/850 Matter 279/300 Energy 87/100 System Corruption 2% Temperature Cool (0) Movement Core (800) Ox15 Location -6/Garrison Parts ------- > --- POWER (1) -------- (None) > --- PROPULSION (4) --- (None) > --- UTILITY (7) ------ High-capacity Storage Unit Advanced Targeting Computer Target Analyzer System Shield System Shield > --- WEAPON (3) ------- Helical Railgun > --- INVENTORY (20) --- Light Nuclear Core Light Angular Momentum Engine Surge Thruster Xenon Bombardment Thruster Xenon Bombardment Thruster Xenon Bombardment Thruster High-capacity Matter Pod (87) Advanced Weight Redist. System Structural Scanner Advanced Phase Shifter Relay Coupler [NC] (22) Relay Coupler [Sentry] (26) Relay Coupler [Sentry] (18) Relay Coupler [Behemoth] (9) Relay Coupler [Proto] (9) Relay Coupler [Proto] (9) Relay Coupler [Proto] (9) Relay Coupler [Proto] (9) Rocket Launcher Peak State ------------ > --- POWER ------------ Reinforced Deuterium Engine > --- PROPULSION ------- Improved Medium Treads Carbon-fiber Leg Flexi-carbon Leg Biometal Leg > --- UTILITY ---------- Advanced Heat Sink High-capacity Storage Unit Advanced Targeting Computer Target Analyzer Improved Shield Generator System Shield System Shield > --- WEAPON ----------- Gauss Rifle Concussive RPG Concussive RPG > --- INVENTORY -------- Light Nuclear Core Light Angular Momentum Engine Improved Medium Treads Surge Thruster Xenon Bombardment Thruster Xenon Bombardment Thruster Xenon Bombardment Thruster High-capacity Matter Pod Advanced Weight Redist. System Structural Scanner Advanced Phase Shifter Relay Coupler [Sentry] Relay Coupler [Proto] Relay Coupler [Proto] Relay Coupler [Proto] Relay Coupler [Proto] Autogun Gauss Rifle Rocket Launcher Katana [Rating: 66] Favorites ----------- Power Light Ion Engine Engine Light Ion Engine Power Core Nuclear Core Reactor Light Antimatter Reactor Propulsion Wheel Treads Improved Medium Treads Leg Aluminum Leg Wheel Wheel Utility High-capacity Storage Unit Device Cooling System Storage High-capacity Storage Unit Processor Advanced Targeting Computer Hackware System Shield Protection Utility Shielding Weapon Assault Rifle Energy Gun Medium Laser Ballistic Gun Assault Rifle Launcher Concussive RPG Slashing Weapon Katana Build | -11 -10 -10 -9 -9 -9 -8 -8 -7 -6 -6 ------- Run | Yrd Mat Min Mat Min Exi Min Mat Fac Fac Gar Slots Evolved 8 | . . . 2 . . . 2 2 2 . Power . | . . . . . . . . . . . Propulsion 2 | . . . . . . . . 1 1 . Utility 5 | . . . 2 . . . 1 1 1 . Weapon 1 | . . . . . . . 1 . . . Parts Attached 86 | 6 8 . 11 6 3 . 10 10 . 32 Power 12 | 1 1 . 1 1 . . 1 3 . 4 Engine 7 | 1 1 . 1 1 . . 1 . . 2 Core 4 | . . . . . . . . 3 . 1 Reactor 1 | . . . . . . . . . . 1 Propulsion 22 | 2 2 . 1 3 . . 4 2 . 8 Treads 2 | . . . . . . . . . . 2 Leg 11 | . . . . 3 . . 2 . . 6 Wheel 9 | 2 2 . 1 . . . 2 2 . . Hover . | . . . . . . . . . . . Flight . | . . . . . . . . . . . Utility 25 | 1 4 . 3 . 3 . 2 4 . 8 Device 9 | 1 1 . 2 . 2 . . 1 . 2 Storage 2 | . 1 . . . . . . . . 1 Processor 4 | . 1 . . . . . 1 . . 2 Hackware 2 | . . . . . . . . 1 . 1 Protection 8 | . 1 . 1 . 1 . 1 2 . 2 Artifact . | . . . . . . . . . . . Weapon 27 | 2 1 . 6 2 . . 3 1 . 12 Energy Gun 5 | . . . 1 . . . 2 1 . 1 Energy Cannon . | . . . . . . . . . . . Ballistic Gun 16 | 2 1 . 5 1 . . 1 . . 6 Ballistic Cannon . | . . . . . . . . . . . Launcher 5 | . . . . 1 . . . . . 4 Special Weapon . | . . . . . . . . . . . Impact Weapon . | . . . . . . . . . . . Slashing Weapon 1 | . . . . . . . . . . 1 Piercing Weapon . | . . . . . . . . . . . Special Melee Weapon . | . . . . . . . . . . . Unidentified Prototypes 2 | . . . . . . . 1 . . 1 Parts Lost 38 | . 3 1 8 2 . . . 1 . 23 Power 4 | . . . 2 . . . . . . 2 Propulsion 14 | . 2 . 2 1 . . . . . 9 Utility 9 | . . 1 . . . . . 1 . 7 Weapon 11 | . 1 . 4 1 . . . . . 5 Highest Loss Streak 10 | . 1 1 8 10 . . . 1 . 10 To Critical Strikes . | . . . . . . . . . . . Average Slot Usage (%) 89 | . 95 85 67 96 100 100 85 90 80 78 Engine 8 | . 14 14 6 10 11 11 9 . . 3 Core 1 | . . . . . . . . 6 6 2 Leg 7 | . . . . 18 22 22 12 . . 7 Wheel 12 | . 25 28 15 . . . 5 22 20 6 Device 9 | . 4 . 8 22 21 11 9 7 6 6 Storage 9 | . 12 14 11 11 11 11 9 7 6 5 Processor 3 | . 4 . . . . . . 7 6 9 Hackware 2 | . . . . . . . . 6 6 10 Protection 10 | . 5 . 5 11 12 22 22 15 13 5 Energy Gun 5 | . . . 2 11 11 11 9 7 6 3 Ballistic Gun 14 | . 27 28 17 10 11 11 9 7 6 7 Peak Build Rating 66 | 6 9 9 12 14 16 13 36 49 49 66 Average Rating 24 | 3 8 8 9 13 15 13 29 43 49 45 On Entrance 18 | . 6 9 8 10 14 14 13 36 49 49 Naked Turns . | . . . . . . . . . . . Heaviest Build 92 | 10 50 49 49 50 50 50 63 88 88 92 Greatest Support 63 | 20 26 26 26 23 23 23 30 36 36 63 Greatest Overweight (x) 16 | . 4 1 15 16 2 2 6 3 2 13 Average Overweight (x) 1 | . 1 1 1 2 2 2 2 1 2 1 Largest Inventory Capacity 20 | 5 20 20 20 20 20 20 20 20 20 20 Average Capacity 19 | 5 18 20 20 20 20 20 20 20 20 19 Most Carried 20 | 5 19 20 20 10 16 10 20 20 20 20 Average Carried 15 | 3 12 19 16 9 13 9 16 19 20 18 Final Capacity 20 | 5 20 20 20 20 20 20 20 20 20 20 Final Carried 20 | 4 17 20 11 10 11 9 19 20 20 19 Class Distribution -------------------- 31% | Mutant 24% | Scavenger-Tank 22% | Scavenger-Mutant 6% | Skirmisher 6% | Hacker-Mutant 5% | Tank Dominant Class ---------------- Mutant | -10/Materials Mutant | -10/Mines Mutant | -9/Materials Scavenger-Mutant | -9/Mines Scavenger-Mutant | -9/Exiles Scavenger-Mutant | -8/Mines Scavenger-Tank | -8/Materials Scavenger-Tank | -7/Factory Scavenger-Tank | -6/Factory Hacker-Mutant | -6/Garrison Resources | -11 -10 -10 -9 -9 -9 -8 -8 -7 -6 -6 ----------- Run | Yrd Mat Min Mat Min Exi Min Mat Fac Fac Gar Matter Collected 2001 | 221 364 19 60 72 364 . 90 93 . 718 Remotely . | . . . . . . . . . . . Salvage Created 3094 | 13 443 56 397 72 . . 686 305 . 1122 Parts 195 | 3 39 5 22 4 . . 50 26 . 46 Haulers Intercepted 2 | . 1 . . . . . 1 . . . Recyclers Shooed 3 | . . . . . . . 1 2 . . Parts Field Recycled . | . . . . . . . . . . . Retrieved Matter . | . . . . . . . . . . . Parts Self-Destructed . | . . . . . . . . . . . Prevented . | . . . . . . . . . . . Kills | -11 -10 -10 -9 -9 -9 -8 -8 -7 -6 -6 ------- Run | Yrd Mat Min Mat Min Exi Min Mat Fac Fac Gar Combat Hostiles Destroyed 61 | . 13 3 7 2 . . 11 4 . 21 Melee 1 | . . . . . . . . . . 1 Guns 58 | . 13 3 7 2 . . 11 4 . 18 AOE 2 | . . . . . . . . . . 2 Classes Destroyed 15 | 1 4 . 4 . . . 3 1 . 2 Worker 4 | . . . . . . . 2 2 . . Builder 5 | . . . 1 . . . 3 1 . . Tunneler 2 | 1 . 1 . . . . . . . . Hauler 2 | . 1 . . . . . 1 . . . Recycler 2 | . . . 1 . . . . 1 . . Operator 2 | . . . . . . . 1 1 . . Watcher 5 | . 3 . . . . . 2 . . . Swarmer 13 | . 7 3 . . . . 3 . . . Cutter 2 | . . . . . . . . . . 2 Grunt 32 | . 6 . 5 1 . . 4 . . 16 Duelist 2 | . . . 1 1 . . . . . . Sentry 4 | . . . 1 . . . 3 . . . Hunter 1 | . . . . . . . 1 . . . Programmer 6 | . . . . . . . . 4 . 2 Behemoth 1 | . . . . . . . . . . 1 Best Kill Streak 9 | 1 3 3 5 2 . . 7 4 . 9 Combat Bots Only 9 | . 3 3 4 2 . . 5 2 . 9 Max Kills in Single Turn 2 | 1 1 1 2 1 . . 1 2 . 1 Gunslinging . | . . . . . . . . . . . Exploded 1 | . . . . . . . . . . 1 Melee 1 | . . . . . . . . . . 1 Uniques/NPCs Destroyed . | . . . . . . . . . . . Combat | -11 -10 -10 -9 -9 -9 -8 -8 -7 -6 -6 -------- Run | Yrd Mat Min Mat Min Exi Min Mat Fac Fac Gar Hostile Shots Fired 454 | . 61 6 71 8 . 15 25 11 . 257 Missed 117 | . 14 . 18 1 . 7 8 5 . 64 Damage Taken 5927 | . 613 56 776 153 . 62 188 198 . 3881 Core 1269 | . 124 38 170 59 . 6 . 13 . 859 Absorbed by Shields 297 | . . . . . . . . . . 297 Redirected to Shielding 94 | . 39 2 28 9 . 3 10 3 . . Ignored by Resistances 42 | . . . . . . . . . . 42 Core Remaining (%) 74 | 100 . 35 . . . 41 100 98 . . Volleys Fired 182 | 2 42 4 26 3 . . 25 14 . 66 Largest 3 | 2 2 2 2 2 . . 1 1 . 3 Hottest 112 | 40 40 40 70 80 . . 63 61 . 112 Shots Fired 425 | 4 84 8 50 6 . . 66 34 . 173 Gun 415 | 4 84 8 50 5 . . 66 34 . 164 Cannon . | . . . . . . . . . . . Launcher 10 | . . . . 1 . . . . . 9 Special . | . . . . . . . . . . . Kinetic 313 | 4 84 8 39 2 . . 41 20 . 115 Thermal 102 | . . . 11 3 . . 25 14 . 49 Explosive 10 | . . . . 1 . . . . . 9 Electromagnetic . | . . . . . . . . . . . Robot Hit Streak 27 | 2 11 5 13 6 . . 10 11 . 27 Robot Miss Streak 4 | 1 4 3 2 . . . 3 3 . 3 Penetration Max 1 | . . . . . . . . . . 1 Secondary Targets 16 | . 2 . 5 . . . . . . 9 Max Gunslinging Chain 1 | . 1 . 1 . . . . . . 1 Autonomous 68 | . . . . . . . 41 20 . 7 Shots Hit Robots 320 | 3 51 5 38 5 . . 53 23 . 142 Core Hits 153 | 1 23 4 17 5 . . 25 11 . 67 Critical Kills 1 | . 1 . . . . . . . . . Critical Parts Destroyed 4 | . 1 . . . . . 1 1 . 1 Critical Strikes 15 | . 2 . 1 . . . 3 2 . 7 Burn 9 | . . . 1 . . . 2 1 . 5 Destroy 5 | . 2 . . . . . 1 1 . 1 Sever 1 | . . . . . . . . . . 1 Melee Attacks 8 | . . . . . . . . . . 8 Impact . | . . . . . . . . . . . Slashing 8 | . . . . . . . . . . 8 Piercing . | . . . . . . . . . . . Sneak Attacks . | . . . . . . . . . . . Combat Hostiles . | . . . . . . . . . . . Follow-up Attacks . | . . . . . . . . . . . Damage Inflicted 7085 | 44 792 73 570 133 . . 1281 890 . 3302 Guns 6135 | 44 661 73 570 48 . . 1281 885 . 2573 Cannons . | . . . . . . . . . . . Explosions 762 | . 100 . . 85 . . . . . 577 Melee 152 | . . . . . . . . . . 152 Ramming 36 | . 31 . . . . . . 5 . . Kinetic 4663 | 44 661 73 483 8 . . 1010 665 . 1719 Thermal 1572 | . 100 . 87 40 . . 271 220 . 854 Explosive 662 | . . . . 85 . . . . . 577 Electromagnetic . | . . . . . . . . . . . Impact . | . . . . . . . . . . . Slashing 152 | . . . . . . . . . . 152 Piercing . | . . . . . . . . . . . Highest Corruption 2 | . 1 1 . . . . . 2 . 2 Average Corruption 1 | . 1 1 . . . . . 2 . 1 Corruption Purged . | . . . . . . . . . . . Corruption Blocked . | . . . . . . . . . . . Effects 20 | . 4 2 . . . . . 1 . 13 Message Errors 6 | . 1 1 . . . . . . . 4 Matter Fused 2 | . 1 . . . . . . 1 . . Heat Flow Errors 1 | . . . . . . . . . . 1 Energy Discharges 4 | . 1 1 . . . . . . . 2 Data Loss (minor) 3 | . . . . . . . . . . 3 Data Loss (major) 1 | . 1 . . . . . . . . . Misfires 2 | . . . . . . . . . . 2 Weapon Failures 1 | . . . . . . . . . . 1 Overload Shots . | . . . . . . . . . . . Overflow Damage 6 | . . . . 6 . . . . . . Projectiles . | . . . . . . . . . . . Explosions 6 | . . . . 6 . . . . . . Melee . | . . . . . . . . . . . Knockbacks . | . . . . . . . . . . . Impact . | . . . . . . . . . . . Kinetic . | . . . . . . . . . . . Secondary . | . . . . . . . . . . . Self-Inflicted Damage 117 | . 80 . . 35 . . . 2 . . Shots 2 | . 1 . . 1 . . . . . . Rammed 3 | . 2 . . . . . . 1 . . Targets Rammed 3 | . 2 . . . . . . 1 . . Kicked . | . . . . . . . . . . . Crushed . | . . . . . . . . . . . Highest Temperature 202 | . 20 . . . . . . . . 202 Average Temperature 35 | . 4 . . . . . . . . 41 Received Heat Transfer 1884 | . 219 . 249 30 . . 36 . . 1350 Siege Activations . | . . . . . . . . . . . Robots Corrupted . | . . . . . . . . . . . Combat Hostiles . | . . . . . . . . . . . Parts Fried . | . . . . . . . . . . . Impact Corruptions . | . . . . . . . . . . . Robots Melted . | . . . . . . . . . . . Combat Hostiles . | . . . . . . . . . . . Parts Melted 6 | . . . . . . . 3 1 . 2 Heat Transferred 3633 | . 50 . 333 111 . . 888 444 . 1807 Parts Sabotaged . | . . . . . . . . . . . Parts Stolen . | . . . . . . . . . . . Parts Stripped . | . . . . . . . . . . . Power Chain Reactions . | . . . . . . . . . . . Alert | -11 -10 -10 -9 -9 -9 -8 -8 -7 -6 -6 ------- Run | Yrd Mat Min Mat Min Exi Min Mat Fac Fac Gar Peak Influence 587 | 5 234 147 221 137 . . 283 173 84 587 Initial 128 | . 3 82 57 85 . . . 128 84 58 Average 160 | 1 112 144 94 135 . . 120 122 84 341 Maximum Alert Level 2 | . 1 . 1 . . . 1 . . 2 Low Security (%) 74 | 100 76 100 91 100 . 100 85 100 100 19 Level 1 18 | . 23 . 8 . . . 14 . . 44 Level 2 7 | . . . . . . . . . . 36 Level 3 . | . . . . . . . . . . . Level 4 . | . . . . . . . . . . . Level 5 . | . . . . . . . . . . . High Security . | . . . . . . . . . . . Max Security . | . . . . . . . . . . . Squads Dispatched 8 | . 2 . 2 . . . 1 2 1 . Investigation 5 | . 2 . 1 . . . 1 . 1 . Extermination 2 | . . . . . . . . 2 . . Reinforcement 1 | . . . 1 . . . . . . . Assault . | . . . . . . . . . . . Garrison . | . . . . . . . . . . . Intercept . | . . . . . . . . . . . Searches Triggered . | . . . . . . . . . . . Construction Impeded . | . . . . . . . . . . . Haulers Reinforced . | . . . . . . . . . . . Active Scanning Responses . | . . . . . . . . . . . Cargo Convoy Interrupts . | . . . . . . . . . . . Stealth | -11 -10 -10 -9 -9 -9 -8 -8 -7 -6 -6 --------- Run | Yrd Mat Min Mat Min Exi Min Mat Fac Fac Gar Distress Signals 5 | . 3 . 1 . . . . 1 . . Communications Jammed . | . . . . . . . . . . . Distress Signals . | . . . . . . . . . . . Times Spotted 93 | . 22 2 18 2 . 3 16 7 . 23 Peak Tracking Total 6 | . 4 2 6 2 . 3 4 3 . 6 Tactical Retreats 5 | . 2 . 2 . . . . . . 1 Traps | -11 -10 -10 -9 -9 -9 -8 -8 -7 -6 -6 ------- Run | Yrd Mat Min Mat Min Exi Min Mat Fac Fac Gar Traps Triggered 12 | . 2 . 1 . . . . 5 . 4 Indirectly . | . . . . . . . . . . . Trap Hack Attempts . | . . . . . . . . . . . Triggered . | . . . . . . . . . . . Disarmed . | . . . . . . . . . . . Reprogrammed . | . . . . . . . . . . . Reused . | . . . . . . . . . . . Traps Extracted . | . . . . . . . . . . . Installed . | . . . . . . . . . . . Triggered . | . . . . . . . . . . . Machines | -11 -10 -10 -9 -9 -9 -8 -8 -7 -6 -6 ---------- Run | Yrd Mat Min Mat Min Exi Min Mat Fac Fac Gar Machines Disabled 12 | . 3 . . 1 . . 2 2 . 4 Max in Single Turn 2 | . 2 . . 1 . . 1 1 . 2 Garrison Relay 2 | . . . . . . . . . . 2 Phase Generator 1 | . . . . . . . . . . 1 Machines Repaired . | . . . . . . . . . . . Machines Dismantled . | . . . . . . . . . . . Machines Sabotaged . | . . . . . . . . . . . Overloaded Fab Kills . | . . . . . . . . . . . Hacking | -11 -10 -10 -9 -9 -9 -8 -8 -7 -6 -6 --------- Run | Yrd Mat Min Mat Min Exi Min Mat Fac Fac Gar Machines Accessed 23 | . 9 . 3 . 1 . 6 3 1 . Terminals 18 | . 7 . 3 . . . 6 2 . . Fabricators . | . . . . . . . . . . . Repair Stations . | . . . . . . . . . . . Recycling Units 2 | . 2 . . . . . . . . . Scanalyzers . | . . . . . . . . . . . Garrison Access 2 | . . . . . . . . 1 1 . Total Hacks 60 | . 22 . 5 . 1 . 23 6 3 . Successful 27 | . 12 . 3 . 1 . 7 3 1 . Failed 32 | . 9 . 2 . . . 16 3 2 . Catastrophic 7 | . 2 . 1 . . . 2 2 . . Database Lockouts 1 | . 1 . . . . . . . . . Manual 47 | . 22 . 4 . 1 . 15 5 . . Terminals 49 | . 16 . 5 . . . 23 5 . . Fabricators . | . . . . . . . . . . . Repair Stations . | . . . . . . . . . . . Recycling Units 6 | . 6 . . . . . . . . . Scanalyzers . | . . . . . . . . . . . Garrison Access 4 | . . . . . . . . 1 3 . Terminal Hacks 7 | . 1 . 1 . 1 . 4 . . . Robot Analysis 3 | . 1 . 1 . . . 1 . . . Prototype ID Bank 1 | . . . . . . . 1 . . . Branch Access Points 1 | . . . . . . . 1 . . . Zone Layout 1 | . . . . . . . 1 . . . Derelict Proto ID Bank 1 | . . . . . 1 . . . . . Fabricator Hacks . | . . . . . . . . . . . Repair Station Hacks . | . . . . . . . . . . . Recycling Unit Hacks . | . . . . . . . . . . . Scanalyzer . | . . . . . . . . . . . Garrison Access Hacks 1 | . . . . . . . . . 1 . Unlock Access 1 | . . . . . . . . . 1 . Unauthorized Hacks 19 | . 11 . 2 . . . 3 3 . . Terminals 16 | . 8 . 2 . . . 3 3 . . Assimilate 6 | . 4 . . . . . . 2 . . Botnet 9 | . 3 . 2 . . . 3 1 . . Operators 1 | . 1 . . . . . . . . . Fabricators . | . . . . . . . . . . . Repair Stations . | . . . . . . . . . . . Recycling Units 3 | . 3 . . . . . . . . . Reject 1 | . 1 . . . . . . . . . Mask 2 | . 2 . . . . . . . . . Scanalyzers . | . . . . . . . . . . . Garrison Access . | . . . . . . . . . . . Data Cores Recovered 2 | . . . 1 . . . . 1 . . Used 1 | . . . 1 . . . . . . . Hacking Detections 20 | . 8 . 2 . . . 6 3 1 . Full Trace Events 3 | . 1 . . . . . 1 . 1 . Feedback Events . | . . . . . . . . . . . Feedback Blocked . | . . . . . . . . . . . Robot Schematics Acquired . | . . . . . . . . . . . Robots Built . | . . . . . . . . . . . Authchips . | . . . . . . . . . . . Time . | . . . . . . . . . . . Total Robot Build Rating . | . . . . . . . . . . . Part Schematics Acquired . | . . . . . . . . . . . Parts Built . | . . . . . . . . . . . Authchips . | . . . . . . . . . . . Time . | . . . . . . . . . . . Total Part Build Rating . | . . . . . . . . . . . Parts Repaired . | . . . . . . . . . . . Time . | . . . . . . . . . . . Parts Recycled . | . . . . . . . . . . . Recycled Matter . | . . . . . . . . . . . Retrieved Matter . | . . . . . . . . . . . Retrieved Components . | . . . . . . . . . . . Parts Scanalyzed . | . . . . . . . . . . . Part Schematics Acquired . | . . . . . . . . . . . Parts Damaged . | . . . . . . . . . . . Bothacking | -11 -10 -10 -9 -9 -9 -8 -8 -7 -6 -6 ------------ Run | Yrd Mat Min Mat Min Exi Min Mat Fac Fac Gar Used RIF Installer . | . . . . . . . . . . . Robots Hacked . | . . . . . . . . . . . Non-combat . | . . . . . . . . . . . Combat . | . . . . . . . . . . . Robot Hacks Applied . | . . . . . . . . . . . Relay Couplers Released 13 | . . . . . . . . 4 . 9 Machine Destruction 9 | . . . . . . . . . . 9 Programmers 4 | . . . . . . . . 4 . . Fabnet Peak Effective % . | . . . . . . . . . . . Robots Rewired . | . . . . . . . . . . . Allies Hacked . | . . . . . . . . . . . Hacks Repelled . | . . . . . . . . . . . Allies | -11 -10 -10 -9 -9 -9 -8 -8 -7 -6 -6 -------- Run | Yrd Mat Min Mat Min Exi Min Mat Fac Fac Gar Total Allies 2 | . 1 1 . . . . . . . . Largest Group 1 | . 1 1 1 . . . . . . . Highest-Rated Group 31 | . 10 31 31 . . . . . . . Highest-Rated Ally 31 | . 10 31 31 . . . . . . . Total Orders . | . . . . . . . . . . . Ally Attacks 1 | . . . 1 . . . . . . . Total Damage 22 | . . . 22 . . . . . . . Kills 1 | . . . 1 . . . . . . . Allies Corrupted . | . . . . . . . . . . . Allies Melted . | . . . . . . . . . . . Intel | -11 -10 -10 -9 -9 -9 -8 -8 -7 -6 -6 ------- Run | Yrd Mat Min Mat Min Exi Min Mat Fac Fac Gar Robot Analysis Total 3 | . 1 . 1 . . . 1 . . . Derelict Logs Recovered 1 | . . 1 . . . . . . . . Drone Launches . | . . . . . . . . . . . Drone Recoveries . | . . . . . . . . . . . Exploration | -11 -10 -10 -9 -9 -9 -8 -8 -7 -6 -6 ------------- Run | Yrd Mat Min Mat Min Exi Min Mat Fac Fac Gar Turns Passed 5396 | 66 1132 271 199 242 771 173 776 715 56 995 Spaces Moved 2929 | 58 801 232 96 81 293 64 325 553 48 378 Core 19 | 15 . . 1 2 . . . . . 1 Treads 109 | . . . . . . . . . . 109 Legs 683 | . . . . 79 293 64 170 . . 77 Wheels 2118 | 43 801 232 95 . . . 155 553 48 191 Hover . | . . . . . . . . . . . Flight . | . . . . . . . . . . . Fastest Speed 50 | 50 80 105 105 260 260 260 110 101 116 116 Average Speed 147 | 72 105 105 115 278 260 260 196 108 116 167 Slowest Speed 850 | 80 140 105 800 850 260 260 260 125 116 700 Overloaded Moves . | . . . . . . . . . . . Propulsion Burnouts . | . . . . . . . . . . . Robots Hopped . | . . . . . . . . . . . Cave-ins Triggered . | . . . . . . . . . . . Exploration Rate (%) 34 | 3 85 56 20 24 62 28 39 13 3 41 Regions Visited 10 Branch Regions 4 Pre-discovered Areas . | . . . . . . . . . . . Known Exits Taken 4 | . . 1 . . . . 1 1 1 . Unknown Exits Taken 6 | 1 1 . 1 1 1 1 . . . . Scrap Searched 1 | . . 1 . . . . . . . . Spaces Dug . | . . . . . . . . . . . Terrain Destroyed 189 | . 53 . . 7 . . 24 6 . 99 Melee . | . . . . . . . . . . . Projectile 33 | . . . . . . . 24 6 . 3 AOE 156 | . 53 . . 7 . . . . . 96 Terrain Rammed . | . . . . . . . . . . . Walls Destroyed . | . . . . . . . . . . . Machines Disabled . | . . . . . . . . . . . Actions | -11 -10 -10 -9 -9 -9 -8 -8 -7 -6 -6 --------- Run | Yrd Mat Min Mat Min Exi Min Mat Fac Fac Gar Total 3705 | 77 1004 251 134 93 305 73 446 656 48 618 Wait 307 | 3 129 11 . . . 8 38 44 . 74 Move 2920 | 57 800 231 95 80 292 63 324 552 48 378 Hop . | . . . . . . . . . . . Pick Up 113 | 9 19 4 2 4 5 . 28 10 . 32 Fast Attach 14 | 1 2 . . . . . 3 1 . 7 Attach 56 | 5 3 . 11 5 2 . 3 5 . 22 Detach 3 | . . . . . . . 1 . . 2 Swap 16 | . 3 . . 1 1 . 4 4 . 3 Drop 51 | . 4 1 . . 5 2 20 9 . 10 Fire 182 | 2 42 4 26 3 . . 25 14 . 66 Melee 8 | . . . . . . . . . . 8 Ram 3 | . 2 . . . . . . 1 . . Kick . | . . . . . . . . . . . Crush . | . . . . . . . . . . . Escape Stasis 32 | . . . . . . . . 16 . 16 Rewire . | . . . . . . . . . . . Trap . | . . . . . . . . . . . Miscellaneous . | . . . . . . . . . . . Route ------- -11/Scrapyard -10/Materials (discovered 3 exits: *Mat x2 / [*Min]) -10/Mines -9/Materials -9/Mines -9/Exiles -8/Mines -8/Materials -7/Factory -6/Factory -6/Garrison (discovered 1 exit: [*Fac]) History --------- Turn | Location | Event 12 | -11/Scrapyard | Discovered new exit (range 15) 67 | -11/Scrapyard | Entered Materials 212 | -10/Materials | Discovered new exit (range 16) 311 | -10/Materials | Build established: Mutant 398 | -10/Materials | Identified exit to Materials 539 | -10/Materials | Discovered new exit (range 11) 922 | -10/Materials | Discovered exit to Materials (range 5) 926 | -10/Materials | Central database locked down 1199 | -10/Materials | Entered Mines 1202 | -10/Mines | Core integrity fell below 50% 1260 | -10/Mines | Learned Materials stockpile data 1274 | -10/Mines | YI-UF0 nonchalantly dropped a Grenade Launcher on the ground 1288 | -10/Mines | Received a Mining Laser from a helpful Derelict 1392 | -10/Mines | Discovered exit to Materials (range 12) 1470 | -10/Mines | Entered Materials 1470 | -9/Materials | Accompanied by 1 ally 1470 | -9/Materials | Evolved 2 slots: Utility x2 1556 | -9/Materials | Discovered new exit (range 16) 1669 | -9/Materials | Entered Mines 1673 | -9/Mines | Core integrity fell below 50% 1701 | -9/Mines | Lost 10 parts (2p3n5w) 1901 | -9/Mines | Deemed a non-threat by the Exiles lab entrance 1901 | -9/Mines | Discovered new exit (range 5) 1911 | -9/Mines | Entered Exiles 1984 | -9/Exiles | Met 8R-AWN 2007 | -9/Exiles | Build established: Scavenger-Mutant 2020 | -9/Exiles | Met EX-HEX 2101 | -9/Exiles | Met EX-BIN 2132 | -9/Exiles | Aligned with FarCom system 2134 | -9/Exiles | Given EX-Vault access code 2197 | -9/Exiles | Opened EX-Vault 2210 | -9/Exiles | Found AWS/Gauss 2265 | -9/Exiles | Warned to stay clear of 0b10 Research branches 2338 | -9/Exiles | Met EX-DEC 2541 | -9/Exiles | Discovered new exit (range 10) 2682 | -9/Exiles | Left Exiles lab with AWS/Gauss 2682 | -9/Exiles | Entered Mines 2826 | -8/Mines | Discovered new exit (range 9) 2855 | -8/Mines | Entered Materials 2855 | -8/Materials | Evolved 2 slots: Utility x1, Weapon x1 3162 | -8/Materials | Build established: Skirmisher 3543 | -8/Materials | Build established: Scavenger-Tank 3590 | -8/Materials | Discovered new exit (range 16) 3630 | -8/Materials | Identified exit to Factory 3631 | -8/Materials | Entered Factory 3631 | -7/Factory | Evolved 2 slots: Propulsion x1, Utility x1 3717 | -7/Factory | Discovered new exit (range 13) 3756 | -7/Factory | Identified exit to Factory 4346 | -7/Factory | Entered another Factory area 4346 | -6/Factory | Evolved 2 slots: Propulsion x1, Utility x1 4402 | -6/Factory | Identified exit to Garrison 4402 | -6/Factory | Entered Garrison 4460 | -6/Garrison | Triggered checkpoint 4466 | -6/Garrison | AWS/Gauss suddenly broke down 4516 | -6/Garrison | Garrison Relay disabled 4687 | -6/Garrison | Destroyed 9 combat bots 4689 | -6/Garrison | Lost 7 parts (2n4u1w) 4732 | -6/Garrison | Found Relay Coupler [Proto] 4735 | -6/Garrison | Found Relay Coupler [Proto] 4739 | -6/Garrison | Found Relay Coupler [Proto] 4742 | -6/Garrison | Found Relay Coupler [Proto] 4798 | -6/Garrison | Spotted B-75 Beast 4863 | -6/Garrison | Destroyed B-75 Beast 4889 | -6/Garrison | Lost 3 parts (1p1n1u) 5003 | -6/Garrison | Triggered checkpoint 5010 | -6/Garrison | Triggered checkpoint 5119 | -6/Garrison | Lost 10 parts (5n2u3w) 5214 | -6/Garrison | Triggered checkpoint 5246 | -6/Garrison | Garrison Relay disabled 5287 | -6/Garrison | Phase Generator disabled 5332 | -6/Garrison | Discovered new exit (range 12) 5342 | -6/Garrison | Build established: Hacker-Mutant 5371 | -6/Garrison | Spotted Executioner 5371 | -6/Garrison | Spotted Executioner 5383 | -6/Garrison | Core integrity fell below 50% 5392 | -6/Garrison | Core integrity fell below 20% 5397 | -6/Garrison | Destroyed by Executioner with Helical Railgun Last Messages --------------- 05379_ Penetrated by Slug. 05379_ Slug penetrates Wall. 05380_ Executioner Prototype Ballistic Gun severed. 05382_ Penetrated by Slug. 05383_ Slug penetrates Wall. 05385_ Penetrated by Slug. 05385_ Slug penetrates Wall. 05385_ Imp. Medium Treads destroyed. 05387_ Katana destroyed. 05391_ Penetrated by Slug. 05391_ Slug penetrates Wall. 05394_ Penetrated by Slug. 05394_ Acquired Prototype Ballistic Gun. 05395_ Identified Helical Railgun. 05396_ Slug penetrates Executioner. 05396_ Slug penetrates Wall. 05397_ Penetrated by Slug. 05397_ Slug penetrates Wall. 05397_ Penetrated by Slug. Map ----- +----------------------------------------------------+ | ??# # ################### # | | ???# ??### % | | ???###### ????#"# | | ??????????????#"! ### | | ??????????????# #?# ############## ## | | ??????????????#"! #?# #????????????##### | | ??????????????#"# #?# #????????????????? | | ??????????????### #?# #????????????????? | | ????????????????# #?# #????????????????? | | ????????????????# #?# #????????????????? | | ??????????????### #?# #????????????????? | | ???????????#### ### #????????????????? | | ???????????# #????????????????? | | ???????????# ## ### #????????????????? | | ???????????# #### #?# #????????????????? | | ???????????# #??# #?# #????????????????? | | ???????????# #??# ### #????????????????? | | ???????????# #??# #????????????????? | | ???????????# #??# #????????????????? | | ???????????# #??###### #????????????????? | | ???????????# #???????# #????????????????? | | ???????????# #???????# #????????????????? | | ??????????## ######### #????????????????? | | ??????????# #????????????????? | | ??????????# < #????????????????? | | ??????????# E@ #????????????????? | | ??????????########E#######????????????????? | | ????????????????"" ""?????????????????????? | | ??????????????" ^ "???????????????????? | | ?????????????#"""" """"#??????????????????? | | ?????????????#"""" """"#??????????????????? | | ?????????????#" "#??????????????????? | | ??????????????"""" """"???????????????????? | | ???????????????#######????????????????????? | | ??????????????????????????????????????????? | | ??????????????????????????????????????????? | | | | | | | | | | | | | | | | | | | | | | | | | | | | | +----------------------------------------------------+ Best States ------------- Heat Dissipation 64 Energy Generation 21 Energy Capacity 290 Matter Stores 300 Matter Capacity 300 Sight Range 16 Robot Scan Range 14 Terrain Scan Density 10 Armor Coverage 600 Resistance: KI 30 Resistance: TH 10 Core Shielding 20 Utility Shielding 33 Weapon Shielding 33 Evasion (%) 55 Targeting Accuracy 8 Target Analysis 5 Recoil Reduction 1 Defensive Hacking 20 Item Schematics ----------------- None Robot Schematics ------------------ None Fabricated ------------ Nothing Alien Tech Used ----------------- None Achievements -------------- None Challenges ------------ None Game ------ Seed PowerRingPerforator Manual? 0 Play Time 01:15:54 Cumulative 172.6 hours Start 2025.01.05 @ 19:05:16 End 2025.01.05 @ 20:21:42 Sessions 1 Manual Loads 0 Difficulty Rogue Special Mode None Game No. 112 Rogue 112 Adventurer 0 Explorer 0 Win Type - Total 4 Types 3/0/1/0/0/0/0/0/0 Lore% 54 Gallery% 56 Achievement% 50 Wizard Run 0 Options --------- Layout 2 ASCII 0 Keyboard 0 Movement Mouse Keybinds 0 Fullscreen 1 Font 48/Smallcaps Map View 50x44 Zoom Use 0% Tactical HUD 1 Map Filters NONE Filters NONE Steam 1 RUN: 7d65b8e7-472a-45f5-a823-e5be1799bc51